Cogmind - Beta 15 @@@ ROGUE MODE // 2025.08.03 @ 23:48:24 Player: JuustuToug Result: Destroyed by S-43 Plague with Heavy Machine Gun Performance ------------- Evolutions (9) 4500 Regions Visited (21) 4200 Robots Destroyed (79) 395 Value Destroyed (2402) 2402 Prototype IDs (54) 1080 Alien Tech Used (0) 0 Bonus (1911) 1911 TOTAL SCORE: 14488 Bonus ------- High Alert Combat Kills 76 Follower Combat Kills 603 Entered DSFs 1000 Aligned with FarCom 300 Friendly Fire -68 Cogmind --------- Core Integrity 0/1600 Matter 239/300 Energy 25/100 System Corruption 7% Temperature Cool (0) Movement Core (50) Location -1/Access Parts ------- > --- POWER (2) -------- (None) > --- PROPULSION (7) --- (None) > --- UTILITY (14) ----- Experimental Optical Array Advanced Signal Interpreter > --- WEAPON (2) ------- (None) > --- INVENTORY (5) ---- Advanced Weapon Cycler Advanced Component Analysis Suite Chainsword Peak State ------------ > --- POWER ------------ Light Particle Reactor Light Quantum Reactor > --- PROPULSION ------- Impulse Thruster Impulse Thruster Impulse Thruster Impulse Thruster Array Impulse Thruster Array > --- UTILITY ---------- Medium Storage Unit Advanced Gravity Neutralizer Experimental Optical Array Advanced Signal Interpreter Advanced Weapon Cycler Advanced Thermal Shield Thermal Barrier Experimental Shock Absorption System Hacking Suite Advanced Component Analysis Suite > --- WEAPON ----------- Precision Phase Gun Lance > --- INVENTORY -------- Light Neutrino Core Gravmag System Impulse Thruster Impulse Thruster Impulse Thruster Heavy Beamcaster Chainsword [Rating: 157] Favorites ----------- Power Nuclear Core Engine Cooled Ion Engine Power Core Nuclear Core Reactor Antimatter Reactor Propulsion Improved Titanium Leg Leg Improved Titanium Leg Hover Unit Gravmag System Flight Unit Impulse Thruster Utility Hacking Suite Device Transmission Jammer Storage Medium Storage Unit Processor Improved Signal Interpreter Hackware Hacking Suite Protection Improved Light Armor Plating Weapon Shock Rifle Energy Gun Shock Rifle Energy Cannon Ion Cannon Ballistic Gun Assault Rifle Special Weapon Plasma Cutter Impact Weapon Heavy Mace Slashing Weapon Great Axe Piercing Weapon Lance Build | -11 -10 -10 -9 -9 -9 -8 -8 -8 -7 -7 -7 -7 -6 -5 -4 -4 -4 -3 -3 -2 -1 ------- Run | Yrd Mat Min Mat Min Exi Min Mat Sto Fac Was Fac DSF Fac Fac Fac Upp Upp Res DSF Res Acc Slots Evolved 18 | . . . 2 . . . 2 . 2 . . . 2 2 2 . . 2 . 2 2 Power 1 | . . . . . . . . . 1 . . . . . . . . . . . . Propulsion 5 | . . . 1 . . . . . 1 . . . . . 1 . . 1 . . 1 Utility 12 | . . . 1 . . . 2 . . . . . 2 2 1 . . 1 . 2 1 Weapon . | . . . . . . . . . . . . . . . . . . . . . . Parts Attached 132 | 7 3 2 7 2 . 2 12 17 15 8 1 1 11 4 . 3 . 4 2 25 6 Power 23 | 1 . 1 1 1 . . 3 2 2 2 . . 3 . . 2 . 1 . 4 . Engine 8 | 1 . . 1 1 . . 2 2 . 1 . . . . . . . . . . . Core 10 | . . 1 . . . . 1 . 2 1 . . 2 . . 2 . 1 . . . Reactor 5 | . . . . . . . . . . . . . 1 . . . . . . 4 . Propulsion 40 | 2 . . 2 1 . . 4 5 6 1 . . 3 . . . . . . 12 4 Treads . | . . . . . . . . . . . . . . . . . . . . . . Leg 10 | 2 . . 2 1 . . 4 1 . . . . . . . . . . . . . Wheel . | . . . . . . . . . . . . . . . . . . . . . . Hover 17 | . . . . . . . . 3 6 1 . . 3 . . . . . . 4 . Flight 13 | . . . . . . . . 1 . . . . . . . . . . . 8 4 Utility 37 | 2 1 1 1 . . 2 2 2 3 3 1 1 3 4 . . . 3 1 6 1 Device 21 | 1 1 . . . . 1 . 1 2 1 1 . 2 3 . . . 1 1 5 1 Storage 3 | 1 . . 1 . . . . 1 . . . . . . . . . . . . . Processor 4 | . . 1 . . . . . . . 1 . . 1 . . . . 1 . . . Hackware 4 | . . . . . . . 2 . . . . . . 1 . . . . . 1 . Protection 5 | . . . . . . 1 . . 1 1 . 1 . . . . . 1 . . . Artifact . | . . . . . . . . . . . . . . . . . . . . . . Weapon 32 | 2 2 . 3 . . . 3 8 4 2 . . 2 . . 1 . . 1 3 1 Energy Gun 15 | 1 . . . . . . 3 4 2 2 . . . . . . . . . 3 . Energy Cannon 6 | . . . 2 . . . . . 1 . . . 2 . . . . . . . 1 Ballistic Gun 5 | 1 2 . 1 . . . . 1 . . . . . . . . . . . . . Ballistic Cannon . | . . . . . . . . . . . . . . . . . . . . . . Launcher . | . . . . . . . . . . . . . . . . . . . . . . Special Weapon 1 | . . . . . . . . 1 . . . . . . . . . . . . . Impact Weapon 1 | . . . . . . . . 1 . . . . . . . . . . . . . Slashing Weapon 3 | . . . . . . . . 1 1 . . . . . . . . . 1 . . Piercing Weapon 1 | . . . . . . . . . . . . . . . . 1 . . . . . Special Melee Weapon . | . . . . . . . . . . . . . . . . . . . . . . Unidentified Prototypes 17 | . . . . . . . . 6 . 1 . . 1 2 . . . 2 . 4 1 Corrupted Parts 3 | . . 1 . . . . . 1 1 . . . . . . . . . . . . System Corruption 4 | . . 1 . . . . . 2 1 . . . . . . . . . . . . Parts Lost 65 | . . . 1 . . . 2 3 10 . . . 1 . . 2 1 . 5 19 21 Power 13 | . . . 1 . . . 1 . 1 . . . 1 . . 2 . . . 4 3 Propulsion 22 | . . . . . . . . . 5 . . . . . . . . . 1 7 9 Utility 18 | . . . . . . . . 1 . . . . . . . . 1 . 4 5 7 Weapon 12 | . . . . . . . 1 2 4 . . . . . . . . . . 3 2 Highest Loss Streak 21 | . . . 1 . . . 1 1 3 . . . 1 . . 1 1 . 5 16 21 To Critical Strikes . | . . . . . . . . . . . . . . . . . . . . . . Average Backups 8 | 2 4 8 9 10 10 9 9 9 8 9 10 9 9 9 8 9 10 8 7 7 6 Power 1 | . 1 1 . 1 1 1 1 1 1 1 2 2 1 1 1 . . . 1 . . Propulsion 1 | . . 1 . 1 1 1 1 1 1 . . . 1 2 1 1 1 . . 2 3 Utility 4 | . 1 3 5 6 6 5 4 5 5 5 5 4 3 3 3 3 4 2 1 . . Weapon 1 | . 1 2 1 1 1 1 2 1 . 1 3 3 3 3 3 4 5 5 4 3 2 Tool/Special . | . . . . . . . . . . . . . . . . . . . . . . Unused Backups 25 | . 1 3 3 . 1 . 3 4 1 3 2 1 2 1 . . . . . . . Power 4 | . . 1 1 . . . . 2 . . . . . . . . . . . . . Propulsion 5 | . . . 1 . . . 1 1 . 2 . . . . . . . . . . . Utility 9 | . . . . . 1 . 1 1 1 1 1 1 1 1 . . . . . . . Weapon 7 | . 1 2 1 . . . 1 . . . 1 . 1 . . . . . . . . Tool/Special . | . . . . . . . . . . . . . . . . . . . . . . Average Slot Usage (%) 94 | . 100 100 99 100 100 99 99 99 90 84 100 85 92 93 93 93 93 94 91 79 70 Engine 3 | . 14 2 7 11 11 11 8 3 1 6 7 7 . . . . . . . . . Core 5 | . . 11 3 . . . . 5 8 7 7 7 6 5 5 7 10 9 9 6 . Leg 14 | . 28 28 33 33 33 33 27 22 . . . . . . . . . . . . . Hover 11 | . . . . . . . . 4 27 27 30 30 25 23 26 26 26 27 27 20 . Device 12 | . 14 11 10 11 11 . . 4 6 14 15 12 25 29 26 26 26 27 31 26 22 Storage 8 | . 14 14 11 11 11 11 9 9 7 7 7 7 6 5 5 5 5 4 4 4 3 Processor 7 | . . 2 11 11 11 11 9 9 7 7 7 7 6 5 5 5 5 5 9 8 8 Hackware 10 | . . . . . . . 17 18 12 7 7 7 6 10 10 10 9 4 1 . 3 Protection 3 | . . . . . . 10 9 4 2 . . 2 . . 4 5 5 7 1 . . Energy Gun 7 | . . . . . . . 17 16 9 1 7 . . . . . . . . . 1 Energy Cannon 2 | . . . 6 22 22 22 . . . 1 7 . . . . . . . . 2 2 Ballistic Gun 2 | . 27 28 15 . . . . . . . . . . . . . . . . . . Slashing Weapon 1 | . . . . . . . . . 3 . . 1 6 5 5 2 . . . 2 . Peak Build Rating 157 | 7 8 12 20 20 17 24 37 38 48 59 59 50 73 82 87 88 88 99 100 147 157 Average Rating 47 | 4 7 9 15 18 17 19 29 36 39 47 58 49 66 79 86 86 87 94 97 109 140 On Entrance 51 | . 7 8 12 20 17 17 19 34 36 41 59 50 50 69 80 87 88 85 99 98 147 Naked Turns . | . . . . . . . . . . . . . . . . . . . . . . Heaviest Build 62 | 14 15 15 27 28 28 30 30 26 37 46 46 38 50 49 56 56 49 59 57 57 62 Greatest Support 69 | 20 20 20 30 30 30 30 60 60 35 47 47 38 50 53 62 62 50 59 59 67 69 Greatest Overweight (x) 3 | 2 . . . . . . . 3 3 . . . 1 . . . . . . 1 3 Average Overweight (x) . | . . . . . . . . . . . . . . . . . . . . . . Largest Inventory Capacity 10 | 8 8 8 10 10 10 10 10 10 10 10 10 10 10 10 10 10 10 10 10 10 10 Average Capacity 9 | 6 8 8 9 10 10 10 10 10 10 10 10 10 10 10 10 10 10 10 10 10 9 Most Carried 10 | 4 8 8 10 10 10 10 10 10 10 10 10 10 10 10 9 10 10 10 10 10 10 Average Carried 9 | 2 4 7 9 10 10 9 9 9 8 9 9 9 9 9 8 9 10 8 7 7 6 Final Capacity 10 | 8 8 8 10 10 10 10 10 10 10 10 10 10 10 10 10 10 10 10 10 10 5 Final Carried 10 | 3 8 8 10 10 10 9 10 10 8 10 10 9 10 10 8 10 10 10 5 6 3 Class Distribution -------------------- 41% | Hacker-Mutant 24% | Mutant 10% | Infiltrator-Mutant 7% | Hacker-Skirmisher 6% | Scavenger-Mutant 3% | Sprinter Dominant Class ---------------- Mutant | -10/Materials Mutant | -10/Mines Mutant | -9/Materials Scavenger-Mutant | -9/Mines Scavenger-Mutant | -9/Exiles Scavenger-Mutant | -8/Mines Hacker-Mutant | -8/Materials Hacker-Mutant | -8/Storage Hacker-Mutant | -7/Factory Mutant | -7/Waste Mutant | -7/Factory Infiltrator-Mutant | -7/DSF Infiltrator-Mutant | -6/Factory Hacker-Mutant | -5/Factory Hacker-Mutant | -4/Factory Hacker-Mutant | -4/Upper Caves Hacker-Mutant | -4/Upper Caves Infiltrator-Mutant | -3/Research Infiltrator-Mutant | -3/DSF Mutant | -2/Research Sprinter | -1/Access Resources | -11 -10 -10 -9 -9 -9 -8 -8 -8 -7 -7 -7 -7 -6 -5 -4 -4 -4 -3 -3 -2 -1 ----------- Run | Yrd Mat Min Mat Min Exi Min Mat Sto Fac Was Fac DSF Fac Fac Fac Upp Upp Res DSF Res Acc Matter Collected 2440 | 300 74 66 213 34 . 20 110 567 261 170 . . 125 . 16 183 . . 6 103 192 Remotely . | . . . . . . . . . . . . . . . . . . . . . . Salvage Created 3312 | 98 96 . 200 308 . 93 259 1251 514 58 . . 174 . 16 29 83 . . 133 . Parts 184 | 15 11 . 14 18 . 3 26 48 28 1 . . 7 . 3 1 3 . . 6 . Haulers Intercepted 7 | . 1 . . . . . 1 5 . . . . . . . . . . . . . Recyclers Shooed 2 | . . 1 . . . . . 1 . . . . . . . . . . . . . Parts Field Recycled . | . . . . . . . . . . . . . . . . . . . . . . Retrieved Matter . | . . . . . . . . . . . . . . . . . . . . . . Parts Self-Destructed 10 | . . . . . . . . . . . . . . . . 10 . . . . . Prevented . | . . . . . . . . . . . . . . . . . . . . . . Kills | -11 -10 -10 -9 -9 -9 -8 -8 -8 -7 -7 -7 -7 -6 -5 -4 -4 -4 -3 -3 -2 -1 ------- Run | Yrd Mat Min Mat Min Exi Min Mat Sto Fac Was Fac DSF Fac Fac Fac Upp Upp Res DSF Res Acc Combat Hostiles Destroyed 50 | . 1 1 4 8 . . 8 15 9 . . . 1 . . 1 1 . . 1 . Melee 9 | . . . . . . . . . 5 . . . 1 . . 1 1 . . 1 . Guns 27 | . 1 1 3 . . . 6 12 4 . . . . . . . . . . . . Cannons 9 | . . . 1 8 . . . . . . . . . . . . . . . . . AOE 3 | . . . . . . . 2 1 . . . . . . . . . . . . . Classes Destroyed 14 | 1 3 1 2 1 . 1 . 2 2 . . . . . 1 . . . . . . Worker 1 | . . . . . . . . . . . . . . . 1 . . . . . . Tunneler 6 | 5 . . . . . . . . 1 . . . . . . . . . . . . Hauler 7 | . 1 . . . . . 1 5 . . . . . . . . . . . . . Recycler 4 | . . . . . . 1 . 2 . . . . 1 . . . . . . . . Operator 7 | . 1 . 1 . . . . 2 2 . . . . . . . . . . 1 . Watcher 4 | . . . . . . . . 2 1 . . . . . . . . . . 1 . Swarmer 14 | . . . . 3 . . 6 4 . . . . . . . 1 . . . . . Grunt 15 | . 1 . 2 2 . . 1 5 3 . . . . . . . 1 . . . . Brawler 3 | . . . 1 1 . . . 1 . . . . . . . . . . . . . Duelist 1 | . . . . . . . . 1 . . . . . . . . . . . . . Sentry 9 | . . . 1 2 . . 1 4 1 . . . . . . . . . . . . Demolisher 1 | . . 1 . . . . . . . . . . . . . . . . . . . Hunter 2 | . . . . . . . . . 2 . . . . . . . . . . . . Programmer 5 | . . . . . . . . . 3 . . . 1 . . . . . . 1 . Best Kill Streak 3 | 3 1 1 2 3 . 1 3 3 3 . . . 1 . 1 1 1 . . 1 . Combat Bots Only 3 | . 1 1 2 3 . . 3 3 1 . . . 1 . . 1 1 . . 1 . Max Kills in Single Turn 2 | 1 1 1 1 2 . 1 2 1 2 . . . 1 . 1 1 1 . . 1 . Gunslinging . | . . . . . . . . . . . . . . . . . . . . . . Exploded 2 | . . . . . . . 2 1 . . . . . . . . . . . . . Melee 1 | . . . . . . . . . 1 . . . 1 . . 1 1 . . 1 . Uniques/NPCs Destroyed . | . . . . . . . . . . . . . . . . . . . . . . Combat | -11 -10 -10 -9 -9 -9 -8 -8 -8 -7 -7 -7 -7 -6 -5 -4 -4 -4 -3 -3 -2 -1 -------- Run | Yrd Mat Min Mat Min Exi Min Mat Sto Fac Was Fac DSF Fac Fac Fac Upp Upp Res DSF Res Acc Hostile Shots Fired 838 | . 3 3 27 40 . . 54 97 110 . . 16 4 3 22 34 16 . 15 150 244 Missed 314 | . 2 1 8 11 . . 20 31 25 . . 4 2 . 11 16 7 . 7 64 105 Hits 524 | . 1 2 19 29 . . 34 66 85 . . 12 2 3 11 18 9 . 8 86 139 Melee 8 | . . . 3 . . . . 2 . . . . . . . . . . 3 . . Projectile 516 | . 1 2 16 29 . . 34 64 85 . . 12 2 3 11 18 9 . 5 86 139 AOE 5 | . . 3 . . . . . . . . . . . . . . . . 2 . . Critical Strikes 23 | . . . . . . . 1 4 5 . . . . . 1 . . . 1 7 4 Part Disruptions 2 | . . . . . . . . . . . . . . . . . . . . 2 . Damage Taken 9595 | . 10 124 248 267 . . 446 992 1134 . . 91 98 55 242 278 186 . 319 2087 3018 Core 2491 | . . 63 53 33 . . 26 176 135 . . 19 . . 25 12 43 . 28 278 1600 Absorbed by Shields 33 | . . . . . . . . . . . . 33 . . . . . . . . . Ignored by Resistances 23 | . . . . . . . . . . . . . . . . . . . . . 23 Regen/Repaired (Parts) 233 | . . . 11 . . . . 186 . . . . 36 . . . . . . . . Core Remaining (%) 86 | 100 . 74 . . . 78 . 63 . . . 78 100 100 . . 93 . 97 80 . Volleys Fired 204 | 10 12 6 17 16 . 1 15 77 46 . . . . . . . . . . 4 . Largest 2 | 2 2 2 2 2 . 2 2 2 2 . . . . . . . . . . 2 . Hottest 139 | 60 40 40 120 120 . 120 100 100 120 . . . . . . . . . . 139 . Shots Fired 381 | 20 24 11 34 32 . 2 30 150 72 . . . . . . . . . . 6 . Gun 342 | 20 24 11 32 . . . 30 150 72 . . . . . . . . . . 3 . Cannon 39 | . . . 2 32 . 2 . . . . . . . . . . . . . 3 . Launcher . | . . . . . . . . . . . . . . . . . . . . . . Special . | . . . . . . . . . . . . . . . . . . . . . . Kinetic 77 | 10 24 11 32 . . . . . . . . . . . . . . . . . . Thermal 69 | 10 . . 2 32 . 2 . . 23 . . . . . . . . . . . . Explosive . | . . . . . . . . . . . . . . . . . . . . . . Electromagnetic 235 | . . . . . . . 30 150 49 . . . . . . . . . . 6 . Robot Hit Streak 13 | 6 6 3 9 10 . 10 3 13 10 . . . . . . . . . . 8 . Robot Miss Streak 6 | 2 4 1 4 6 . . 2 4 4 . . . . . . . . . . 2 . Penetration Max . | . . . . . . . . . . . . . . . . . . . . . . Secondary Targets 4 | . . . 1 . . . . 3 . . . . . . . . . . . . . Max Gunslinging Chain 1 | . . . 1 . . . . 1 . . . . . . . . . . . . . Shots Hit Robots 265 | 14 13 7 24 18 . 2 17 89 57 1 . . 3 . 2 1 2 . . 15 . Core Hits 116 | 5 7 2 10 8 . 1 11 36 21 . . . 2 . 2 1 2 . . 8 . Critical Kills . | . . . . . . . . . . . . . . . . . . . . . . Critical Parts Destroyed . | . . . . . . . . . . . . . . . . . . . . . . Critical Strikes 7 | . . . . . . . . 4 2 . . . . . 1 . . . . . . Burn 1 | . . . . . . . . . 1 . . . . . . . . . . . . Corrupt 4 | . . . . . . . . 4 . . . . . . . . . . . . . Sever 2 | . . . . . . . . . 1 . . . . . 1 . . . . . . Melee Attacks 89 | . . . . . . . . 22 22 1 . 1 6 . 2 2 4 3 . 18 8 Impact 4 | . . . . . . . . 4 . . . . . . . . . . . . . Slashing 53 | . . . . . . . . 18 22 1 . 1 6 . 2 2 . . . 1 . Piercing 32 | . . . . . . . . . . . . . . . . . 4 3 . 17 8 Sneak Attacks 6 | . . . . . . . . . 1 . . . 1 . 1 . . . . 3 . Combat Hostiles 2 | . . . . . . . . . 1 . . . . . . . . . . 1 . Follow-up Attacks 1 | . . . . . . . . . . . . . . . . . . . . 1 . Damage Inflicted 6121 | 166 138 80 396 455 . 45 374 1737 1731 58 . . 170 . 124 46 80 . . 521 . Guns 3380 | 166 138 80 349 . . . 277 1629 707 . . . . . . . . . . 34 . Cannons 620 | . . . 47 455 . 45 . . . . . . . . . . . . . 73 . Explosions 541 | . . . . . . . 97 108 336 . . . . . . . . . . . . Melee 1580 | . . . . . . . . . 688 58 . . 170 . 124 46 80 . . 414 . Ramming . | . . . . . . . . . . . . . . . . . . . . . . Kinetic 645 | 78 138 80 349 . . . . . . . . . . . . . . . . . . Thermal 1266 | 88 . . 47 455 . 45 97 108 426 . . . . . . . . . . . . Explosive 185 | . . . . . . . . . 185 . . . . . . . . . . . . Electromagnetic 2445 | . . . . . . . 277 1629 432 . . . . . . . . . . 107 . Impact . | . . . . . . . . . . . . . . . . . . . . . . Slashing 1162 | . . . . . . . . . 688 58 . . 170 . 124 46 . . . 76 . Piercing 418 | . . . . . . . . . . . . . . . . . 80 . . 338 . Highest Corruption 17 | . . 2 . . . . . 5 1 1 1 1 3 . . . . . . 17 7 Average Corruption 3 | . . 1 . . . . . 3 1 1 1 1 3 . . . . . . 11 6 Corruption Purged . | . . . . . . . . . . . . . . . . . . . . . . Corruption Blocked . | . . . . . . . . . . . . . . . . . . . . . . Effects 104 | . . 6 . . . . . 56 8 2 . 1 18 . . . . . . 12 1 Message Errors 21 | . . 2 . . . . . 14 . . . . 3 . . . . . . 2 . Matter Fused 29 | . . 2 . . . . . 18 3 1 . 1 2 . . . . . . 1 1 Heat Flow Errors 9 | . . 1 . . . . . 3 1 . . . 4 . . . . . . . . Energy Discharges 12 | . . . . . . . . 7 . . . . 4 . . . . . . 1 . Parts Rejected 2 | . . . . . . . . 1 . . . . . . . . . . . 1 . Parts Fused 1 | . . . . . . . . 1 . . . . . . . . . . . . . Data Loss (minor) 14 | . . . . . . . . 6 2 . . . 3 . . . . . . 3 . Data Loss (major) 7 | . . . . . . . . 3 1 1 . . 1 . . . . . . 1 . Misfires 2 | . . . . . . . . 1 1 . . . . . . . . . . . . Alerts 5 | . . . . . . . . 2 . . . . 1 . . . . . . 2 . Misdirections 1 | . . . . . . . . . . . . . . . . . . . . 1 . Weapon Failures 1 | . . 1 . . . . . . . . . . . . . . . . . . . Overload Shots . | . . . . . . . . . . . . . . . . . . . . . . Overflow Damage 155 | . . . . 2 . . . . 103 17 . . . . . . . . . 33 . Projectiles 29 | . . . . 2 . . . . . . . . . . . . . . . 27 . Explosions 44 | . . . . . . . . . 44 . . . . . . . . . . . . Melee 82 | . . . . . . . . . 59 17 . . . . . . . . . 6 . Knockbacks . | . . . . . . . . . . . . . . . . . . . . . . Impact . | . . . . . . . . . . . . . . . . . . . . . . Kinetic . | . . . . . . . . . . . . . . . . . . . . . . Secondary . | . . . . . . . . . . . . . . . . . . . . . . Self-Inflicted Damage 236 | . . . . . . . 32 84 120 . . . . . . . . . . . . Shots 5 | . . . . . . . 1 2 2 . . . . . . . . . . . . Rammed . | . . . . . . . . . . . . . . . . . . . . . . Targets Rammed . | . . . . . . . . . . . . . . . . . . . . . . Kicked . | . . . . . . . . . . . . . . . . . . . . . . Crushed . | . . . . . . . . . . . . . . . . . . . . . . Highest Temperature 287 | . . 151 66 246 . 57 129 273 232 3 3 . 287 18 31 . 1 2 . 4 18 Average Temperature 73 | . . 76 34 111 . 29 48 75 72 2 3 . 114 13 16 . 1 2 . 4 10 Received Heat Transfer 939 | . 6 9 99 33 . . 81 306 240 . . . . 27 63 . 39 . . 27 9 Effects 2 | . . . . . . . . 1 1 . . . . . . . . . . . . Energy Bleed 2 | . . . . . . . . 1 1 . . . . . . . . . . . . Siege Activations . | . . . . . . . . . . . . . . . . . . . . . . Martial Activations . | . . . . . . . . . . . . . . . . . . . . . . Shielding Activations . | . . . . . . . . . . . . . . . . . . . . . . Robots Disrupted . | . . . . . . . . . . . . . . . . . . . . . . Combat Hostiles . | . . . . . . . . . . . . . . . . . . . . . . Robots Corrupted 4 | . . . . . . . . 3 . . . . . . . . . . . 1 . Combat Hostiles 2 | . . . . . . . . 2 . . . . . . . . . . . . . Parts Fried 12 | . . . . . . . . 10 . . . . . . . . . . . 2 . Impact Corruptions . | . . . . . . . . . . . . . . . . . . . . . . Robots Melted . | . . . . . . . . . . . . . . . . . . . . . . Combat Hostiles . | . . . . . . . . . . . . . . . . . . . . . . Parts Melted 7 | . . . . 3 . . 2 . 2 . . . . . . . . . . . . Heat Transferred 2278 | 200 . . 74 740 . 74 150 150 890 . . . . . . . . . . . . Parts Sabotaged . | . . . . . . . . . . . . . . . . . . . . . . Parts Stolen . | . . . . . . . . . . . . . . . . . . . . . . Parts Stripped . | . . . . . . . . . . . . . . . . . . . . . . Power Chain Reactions 6 | . . . . . . . 1 2 3 . . . . . . . . . . . . Alert | -11 -10 -10 -9 -9 -9 -8 -8 -8 -7 -7 -7 -7 -6 -5 -4 -4 -4 -3 -3 -2 -1 ------- Run | Yrd Mat Min Mat Min Exi Min Mat Sto Fac Was Fac DSF Fac Fac Fac Upp Upp Res DSF Res Acc Maximum Alert Level 2 | . . . . . . . . 2 . . . . . . . . . . . 1 . Low Security (%) 88 | 100 100 100 100 100 . 100 100 59 100 100 100 100 100 100 100 . . 100 100 99 100 Level 1 3 | . . . . . . . . 13 . . . . . . . . . . . . . Level 2 8 | . . . . . . . . 27 . . . . . . . . . . . . . Level 3 . | . . . . . . . . . . . . . . . . . . . . . . Level 4 . | . . . . . . . . . . . . . . . . . . . . . . Level 5 . | . . . . . . . . . . . . . . . . . . . . . . High Security . | . . . . . . . . . . . . . . . . . . . . . . Max Security . | . . . . . . . . . . . . . . . . . . . . . . Peak Influence 578 | 15 30 56 50 85 . 35 89 578 194 11 . 1 30 12 20 . . 26 . 201 121 Initial 194 | . . . . 3 . . 9 11 194 11 . . . . . . . 6 . . 120 Average 73 | 2 2 5 16 31 . 7 19 204 39 . . . 1 . 6 . . 7 . 20 79 Influence Increases 3631 | 25 47 77 165 213 . 65 234 1349 514 . . 1 60 12 25 230 20 60 . 411 123 Destroy 0b10 Robot/C 1420 | . 20 60 80 160 . . 160 680 180 . . . 20 . . 20 20 . . 20 . Destroy 0b10 Robot/NC 145 | 25 10 . 5 . . 5 5 55 20 . . . 5 . 5 . . . . 10 . Destroy Leader 362 | . 12 10 30 20 . . 32 164 72 . . . 10 . . . . . . 12 . Allied During Kill 216 | . . 7 . . . . . 209 . . . . . . . . . . . . . Successful Hack 247 | . 5 . 50 . . . 2 12 27 . . . 24 12 20 . . 41 . 42 12 Disable Machine 285 | . . . . 30 . . 15 120 120 . . . . . . . . . . . . Destroy Structure 86 | . . . . 3 . . 5 19 20 . . 1 1 . . . . 4 . 12 21 Partial Spotted 165 | . . . . . . . . 15 60 . . . . . . . . 15 . 75 . Lose Combat Pursuer 705 | . . . . . . 60 15 75 15 . . . . . . 210 . . . 240 90 Influence Decreases 3631 | 25 47 77 155 223 . 40 231 949 908 34 . . 60 13 20 219 26 70 . 210 324 Entered New Map 391 | . . . . 7 . . 16 17 234 23 . . 1 1 . 3 4 4 . . 81 Time Decay 2067 | 25 47 61 125 216 . 40 205 252 463 11 . . 53 12 20 196 22 66 . 153 100 Lost Part 337 | . . . 10 . . . 10 30 61 . . . 6 . . 20 . . . 57 143 Lost Ally 236 | . . 16 20 . . . . 200 . . . . . . . . . . . . . Purge Threat 600 | . . . . . . . . 450 150 . . . . . . . . . . . . Squads Dispatched 25 | . 1 . 2 . . . 1 3 7 . . . 2 3 . . . . 1 4 1 Investigation 4 | . . . . . . . . . 1 . . . . 2 . . . . . 1 . Extermination 10 | . . . . . . . . . 3 . . . 2 1 . . . . . 3 1 Reinforcement 10 | . 1 . 2 . . . 1 2 3 . . . . . . . . . 1 . . Assault 1 | . . . . . . . . 1 . . . . . . . . . . . . . Garrison . | . . . . . . . . . . . . . . . . . . . . . . Intercept . | . . . . . . . . . . . . . . . . . . . . . . Searches Triggered . | . . . . . . . . . . . . . . . . . . . . . . Construction Impeded 1 | . . . . . . . . 1 . . . . . . . . . . . . . Haulers Reinforced . | . . . . . . . . . . . . . . . . . . . . . . Active Scanning Responses . | . . . . . . . . . . . . . . . . . . . . . . Cargo Convoy Interrupts . | . . . . . . . . . . . . . . . . . . . . . . Stealth | -11 -10 -10 -9 -9 -9 -8 -8 -8 -7 -7 -7 -7 -6 -5 -4 -4 -4 -3 -3 -2 -1 --------- Run | Yrd Mat Min Mat Min Exi Min Mat Sto Fac Was Fac DSF Fac Fac Fac Upp Upp Res DSF Res Acc Distress Signals 4 | . . . . . . . . 4 . . . . . . . . . . . . . Communications Jammed . | . . . . . . . . . . . . . . . . . . . . . . Distress Signals . | . . . . . . . . . . . . . . . . . . . . . . Times Spotted 189 | . 3 3 6 8 . 3 13 39 17 . . 2 4 3 5 17 3 2 5 32 24 Peak Tracking Total 21 | . 1 2 2 3 . 4 6 6 2 . . 2 2 3 5 8 3 1 4 13 21 Tactical Retreats 23 | . . . . . . 3 1 3 2 . . . . . . 4 . 1 1 7 1 Traps | -11 -10 -10 -9 -9 -9 -8 -8 -8 -7 -7 -7 -7 -6 -5 -4 -4 -4 -3 -3 -2 -1 ------- Run | Yrd Mat Min Mat Min Exi Min Mat Sto Fac Was Fac DSF Fac Fac Fac Upp Upp Res DSF Res Acc Traps Triggered 15 | . . . . . . . . 4 4 . . 1 2 . . . . . 2 2 . Indirectly . | . . . . . . . . . . . . . . . . . . . . . . Trap Hack Attempts . | . . . . . . . . . . . . . . . . . . . . . . Triggered . | . . . . . . . . . . . . . . . . . . . . . . Disarmed 3 | . . . . . . . . 3 . . . . . . . . . . . . . Reprogrammed . | . . . . . . . . . . . . . . . . . . . . . . Reused . | . . . . . . . . . . . . . . . . . . . . . . Traps Extracted . | . . . . . . . . . . . . . . . . . . . . . . Installed . | . . . . . . . . . . . . . . . . . . . . . . Triggered . | . . . . . . . . . . . . . . . . . . . . . . Machines | -11 -10 -10 -9 -9 -9 -8 -8 -8 -7 -7 -7 -7 -6 -5 -4 -4 -4 -3 -3 -2 -1 ---------- Run | Yrd Mat Min Mat Min Exi Min Mat Sto Fac Was Fac DSF Fac Fac Fac Upp Upp Res DSF Res Acc Machines Disabled 19 | . . . . 2 . . 1 8 8 . . . . . . . . . . . . Max in Single Turn 7 | . . . . 1 . . 1 2 7 . . . . . . . . . . . . Garrison Access 4 | . . . . . . . . 1 2 . . . 1 . . . . . . . . Machines Repaired . | . . . . . . . . . . . . . . . . . . . . . . Machines Dismantled 3 | . . . . . . . . 3 . . . . . . . . . . . . . Machines Sabotaged . | . . . . . . . . . . . . . . . . . . . . . . Overloaded Fab Kills . | . . . . . . . . . . . . . . . . . . . . . . Hacking | -11 -10 -10 -9 -9 -9 -8 -8 -8 -7 -7 -7 -7 -6 -5 -4 -4 -4 -3 -3 -2 -1 --------- Run | Yrd Mat Min Mat Min Exi Min Mat Sto Fac Was Fac DSF Fac Fac Fac Upp Upp Res DSF Res Acc Machines Accessed 73 | . 2 1 3 . 1 . 2 13 10 . 1 . 14 5 1 3 . 6 . 9 2 Terminals 41 | . 2 . 2 . . . 2 8 5 . 1 . 7 3 . . . 3 . 7 1 Fabricators 4 | . . . . . . . . . 1 . . . 1 1 . . . . . 1 . Repair Stations 7 | . . . 1 . . . . 2 1 . . . 1 . . . . . . 1 1 Recycling Units 8 | . . . . . . . . 2 . . . . 4 . . . . 2 . . . Scanalyzers 2 | . . . . . . . . . 1 . . . . . 1 . . . . . . Garrison Access 6 | . . . . . . . . 1 2 . . . 1 1 . . . 1 . . . Total Hacks 192 | . 4 1 8 . 1 . 11 41 30 . 1 . 35 13 6 7 . 12 . 19 3 Successful 120 | . 3 1 6 . 1 . 6 33 21 . 1 . 22 4 2 7 . 5 . 7 1 Failed 72 | . 1 . 2 . . . 5 8 9 . . . 13 9 4 . . 7 . 12 2 Catastrophic 17 | . . . 1 . . . 1 2 2 . . . 4 2 . . . 2 . 2 1 Database Lockouts . | . . . . . . . . . . . . . . . . . . . . . . Manual 14 | . . . . . 1 . 1 5 1 . . . 2 3 . . . . . 1 . Terminals 111 | . 4 . 6 . . . 11 26 11 . 1 . 17 9 . . . 8 . 16 2 Fabricators 11 | . . . . . . . . . 4 . . . 3 2 . . . . . 2 . Repair Stations 17 | . . . 2 . . . . 9 2 . . . 2 . . . . . . 1 1 Recycling Units 17 | . . . . . . . . 5 . . . . 10 . . . . 2 . . . Scanalyzers 17 | . . . . . . . . . 11 . . . . . 6 . . . . . . Garrison Access 10 | . . . . . . . . 1 2 . . . 3 2 . . . 2 . . . Terminal Hacks 71 | . 3 1 4 . 1 . 6 19 6 . 1 . 8 3 . 7 . 5 . 6 1 Record 11 | . . . . . . . . . . . . . 1 . . 5 . 4 . 1 . Robot Analysis 1 | . . . . . . . 1 . . . . . . . . . . . . . . Prototype ID Bank 7 | . 1 . 1 . . . . 1 . . . . 2 1 . . . . . 1 . Open Door 4 | . . 1 . . . . . 1 . . . . . . . 2 . . . . . Open DSF 4 | . . . . . . . . . . . 1 . 1 . . . . 1 . 1 . Level Access Points 3 | . . . 1 . . . . 1 . . . . . 1 . . . . . . . Branch Access Points 1 | . . . . . . . . 1 . . . . . . . . . . . . . Emergency Access Points 3 | . . . . . . . 1 . 1 . . . . 1 . . . . . . . Terminal Index 1 | . . . . . . . . . . . . . . . . . . . . . 1 Repair Station Index 2 | . . . . . . . . 1 1 . . . . . . . . . . . . Alert Level 4 | . 1 . . . . . . 2 . . . . 1 . . . . . . . . Unreport Threat 4 | . . . . . . . . 3 1 . . . . . . . . . . . . Locate Traps 6 | . 1 . . . . . . 3 . . . . 1 . . . . . . 1 . Disarm Traps 2 | . . . . . . . . 2 . . . . . . . . . . . . . Dispatch Records 2 | . . . 1 . . . 1 . . . . . . . . . . . . . . Maintenance Status 1 | . . . . . . . . 1 . . . . . . . . . . . . . Patrol Status 1 | . . . . . . . 1 . . . . . . . . . . . . . . Investigation Status 1 | . . . . . . . 1 . . . . . . . . . . . . . . Reinforcement Status 3 | . . . . . . . . 2 . . . . . . . . . . . 1 . Recall Investigation 2 | . . . . . . . 1 . 1 . . . . . . . . . . . . Recall Reinforcements 1 | . . . . . . . . 1 . . . . . . . . . . . . . Registered Components 1 | . . . . . . . . . . . . . 1 . . . . . . . . Zone Layout 5 | . . . 1 . . . . . 2 . . . 1 . . . . . . 1 . Proto ID Catalog 1 | . . . . . 1 . . . . . . . . . . . . . . . . Fabricator Hacks 5 | . . . . . . . . . 1 . . . 2 1 . . . . . 1 . Network Status 3 | . . . . . . . . . . . . . 1 1 . . . . . 1 . Load Schematic 1 | . . . . . . . . . 1 . . . . . . . . . . . . Build 1 | . . . . . . . . . . . . . 1 . . . . . . . . Repair Station Hacks 14 | . . . 2 . . . . 9 1 . . . 2 . . . . . . . . Scan Component 8 | . . . 1 . . . . 5 1 . . . 1 . . . . . . . . Repair 6 | . . . 1 . . . . 4 . . . . 1 . . . . . . . . Recycling Unit Hacks 12 | . . . . . . . . 4 . . . . 8 . . . . . . . . Report Inventory 6 | . . . . . . . . 2 . . . . 4 . . . . . . . . Retrieve Matter 4 | . . . . . . . . 1 . . . . 3 . . . . . . . . Retrieve Components 2 | . . . . . . . . 1 . . . . 1 . . . . . . . . Scanalyzer 13 | . . . . . . . . . 11 . . . . . 2 . . . . . . Insert Component 6 | . . . . . . . . . 5 . . . . . 1 . . . . . . Analyze 7 | . . . . . . . . . 6 . . . . . 1 . . . . . . Garrison Access Hacks 4 | . . . . . . . . 1 2 . . . 1 . . . . . . . . Seal Access 4 | . . . . . . . . 1 2 . . . 1 . . . . . . . . Unauthorized Hacks 1 | . . . . . . . . . . . . . 1 . . . . . . . . Terminals . | . . . . . . . . . . . . . . . . . . . . . . Fabricators 1 | . . . . . . . . . . . . . 1 . . . . . . . . Report 1 | . . . . . . . . . . . . . 1 . . . . . . . . Repair Stations . | . . . . . . . . . . . . . . . . . . . . . . Recycling Units . | . . . . . . . . . . . . . . . . . . . . . . Scanalyzers . | . . . . . . . . . . . . . . . . . . . . . . Garrison Access . | . . . . . . . . . . . . . . . . . . . . . . Data Cores Recovered 1 | . . . . . . . . . . . . . . . . . . . . 1 . Used . | . . . . . . . . . . . . . . . . . . . . . . Hacking Detections 55 | . 2 . 2 . . . 2 9 8 . . . 10 4 1 . . 6 . 9 2 Full Trace Events 3 | . . . . . . . . . . . . . . 2 . . . . . 1 . Feedback Events . | . . . . . . . . . . . . . . . . . . . . . . Feedback Blocked . | . . . . . . . . . . . . . . . . . . . . . . Robot Schematics Acquired . | . . . . . . . . . . . . . . . . . . . . . . Robots Built . | . . . . . . . . . . . . . . . . . . . . . . Authchips . | . . . . . . . . . . . . . . . . . . . . . . Time . | . . . . . . . . . . . . . . . . . . . . . . Total Robot Build Rating . | . . . . . . . . . . . . . . . . . . . . . . Part Schematics Acquired 6 | . . . . . . . . . 5 . . . . . 1 . . . . . . Parts Built 1 | . . . . . . . . . . . . . 1 . . . . . . . . Authchips . | . . . . . . . . . . . . . . . . . . . . . . Time 117 | . . . . . . . . . . . . . 117 . . . . . . . . Total Part Build Rating 7 | . . . . . . . . . . . . . 7 . . . . . . . . Parts Repaired 6 | . . . 1 . . . . 4 . . . . 1 . . . . . . . . Time 235 | . . . 26 . . . . 159 . . . . 50 . . . . . . . . Parts Recycled . | . . . . . . . . . . . . . . . . . . . . . . Recycled Matter . | . . . . . . . . . . . . . . . . . . . . . . Retrieved Matter 67 | . . . . . . . . 67 . . . . . . . . . . . . . Retrieved Components 13 | . . . . . . . . 10 . . . . 3 . . . . . . . . Parts Scanalyzed 6 | . . . . . . . . . 5 . . . . . 1 . . . . . . Part Schematics Acquired 6 | . . . . . . . . . 5 . . . . . 1 . . . . . . Parts Damaged 1 | . . . . . . . . . 1 . . . . . . . . . . . . Bothacking | -11 -10 -10 -9 -9 -9 -8 -8 -8 -7 -7 -7 -7 -6 -5 -4 -4 -4 -3 -3 -2 -1 ------------ Run | Yrd Mat Min Mat Min Exi Min Mat Sto Fac Was Fac DSF Fac Fac Fac Upp Upp Res DSF Res Acc Used RIF Installer . | . . . . . . . . . . . . . . . . . . . . . . Robots Hacked . | . . . . . . . . . . . . . . . . . . . . . . Non-combat . | . . . . . . . . . . . . . . . . . . . . . . Combat . | . . . . . . . . . . . . . . . . . . . . . . Robot Hacks Applied . | . . . . . . . . . . . . . . . . . . . . . . Relay Couplers Released 3 | . . . . . . . . 3 . . . . . . . . . . . . . Machine Destruction 3 | . . . . . . . . 3 . . . . . . . . . . . . . Fabnet Peak Effective % . | . . . . . . . . . . . . . . . . . . . . . . Robots Rewired . | . . . . . . . . . . . . . . . . . . . . . . Allies Hacked . | . . . . . . . . . . . . . . . . . . . . . . Hacks Repelled . | . . . . . . . . . . . . . . . . . . . . . . Allies | -11 -10 -10 -9 -9 -9 -8 -8 -8 -7 -7 -7 -7 -6 -5 -4 -4 -4 -3 -3 -2 -1 -------- Run | Yrd Mat Min Mat Min Exi Min Mat Sto Fac Was Fac DSF Fac Fac Fac Upp Upp Res DSF Res Acc Total Allies 12 | . . 2 . . . . . 10 . . . . . . . . . . . . . Largest Group 10 | . . 2 1 . . . . 10 . . . . . . . . . . . . . Highest-Rated Group 173 | . . 46 15 . . . . 173 . . . . . . . . . . . . . Highest-Rated Ally 31 | . . 31 15 . . . . 29 . . . . . . . . . . . . . Total Orders . | . . . . . . . . . . . . . . . . . . . . . . Ally Attacks 131 | . . 8 . . . . . 123 . . . . . . . . . . . . . Total Damage 1586 | . . 126 . . . . . 1460 . . . . . . . . . . . . . Kills 21 | . . 2 . . . . . 19 . . . . . . . . . . . . . Allies Corrupted . | . . . . . . . . . . . . . . . . . . . . . . Allies Melted . | . . . . . . . . . . . . . . . . . . . . . . Intel | -11 -10 -10 -9 -9 -9 -8 -8 -8 -7 -7 -7 -7 -6 -5 -4 -4 -4 -3 -3 -2 -1 ------- Run | Yrd Mat Min Mat Min Exi Min Mat Sto Fac Was Fac DSF Fac Fac Fac Upp Upp Res DSF Res Acc Active Infowar (turns) 9721 | 27 372 467 353 668 340 1 . 1939 1209 150 14 81 1214 520 96 546 80 220 47 1153 224 Optics 1496 | . . . . . . . . . . . . . . . . . . 72 47 1153 224 Sensors 1917 | . 89 467 353 668 340 . . . . . . . . . . . . . . . . Terrain 1941 | . . . . . . . . 1939 2 . . . . . . . . . . . . Seismic 395 | 27 283 . . . . . . . . . . . 85 . . . . . . . . Cloaking 2923 | . . . . . . 1 . . 23 150 14 53 1208 520 96 546 80 220 12 . . Jamming 1713 | . . . . . . . . . . . 2 61 367 518 29 217 80 35 47 357 . ECM 1440 | . . . . . . . . . 1184 . . . . . . . . 215 41 . . Robot Analysis Total 1 | . . . . . . . 1 . . . . . . . . . . . . . . Derelict Logs Recovered 3 | . . . . 1 . . . . . . . . . . . 2 . . . . . Drone Launches . | . . . . . . . . . . . . . . . . . . . . . . Drone Recoveries . | . . . . . . . . . . . . . . . . . . . . . . Exploration | -11 -10 -10 -9 -9 -9 -8 -8 -8 -7 -7 -7 -7 -6 -5 -4 -4 -4 -3 -3 -2 -1 ------------- Run | Yrd Mat Min Mat Min Exi Min Mat Sto Fac Was Fac DSF Fac Fac Fac Upp Upp Res DSF Res Acc Turns Passed 14558 | 157 372 573 380 668 340 227 1561 3937 1796 246 17 81 1223 520 96 640 80 220 47 1153 224 Spaces Moved 11003 | 91 164 296 191 410 283 179 566 1588 1565 320 29 87 1308 669 84 1295 150 368 91 1002 267 Core 30 | 17 . . . . . . . . . . . . . . . . . . . . 13 Treads . | . . . . . . . . . . . . . . . . . . . . . . Legs 3206 | 74 164 296 191 410 283 179 566 1043 . . . . . . . . . . . . . Wheels . | . . . . . . . . . . . . . . . . . . . . . . Hover 6935 | . . . . . . . . 545 1565 320 29 87 1308 669 84 1295 150 368 91 424 . Flight 832 | . . . . . . . . . . . . . . . . . . . . 578 254 Fastest Speed 25 | 50 120 120 120 120 120 120 120 42 38 48 48 48 48 50 46 46 46 41 41 28 25 Average Speed 69 | 118 120 120 120 120 120 120 124 109 44 48 48 48 49 50 46 46 46 41 42 35 32 Slowest Speed 250 | 150 120 120 120 120 120 120 130 250 230 48 48 48 105 50 46 46 46 41 46 108 200 Overloaded Moves . | . . . . . . . . . . . . . . . . . . . . . . Propulsion Burnouts . | . . . . . . . . . . . . . . . . . . . . . . Robots Hopped 9 | . . . . . . . . . . . . . . . . . . . . 9 . Potential Cave-ins . | . . . . . . . . . . . . . . . . . . . . . . Cave-ins Triggered . | . . . . . . . . . . . . . . . . . . . . . . Exploration Rate (%) 41 | 5 31 47 16 86 68 41 23 95 34 94 1 79 38 18 2 96 6 11 82 28 10 Regions Visited 21 Branch Regions 7 Pre-discovered Areas 2 | . . . . 1 . . . . . . . . . . . 1 . . . . . Known Exits Taken 15 | . . 1 1 1 1 1 1 1 . . 1 . 1 1 1 1 1 1 . 1 . Unknown Exits Taken 2 | 1 1 . . . . . . . . . . . . . . . . . . . . Scrap Searched 6 | . . 2 . . . . . . . . . . . . . 4 . . . . . Spaces Dug 21 | . . . . . . . . 3 3 . . 1 1 . . . . 2 . 4 7 Terrain Destroyed 60 | . . . . 3 . . 4 19 19 . . 1 1 . . . . 2 . 4 7 Melee 21 | . . . . . . . . 3 3 . . 1 1 . . . . 2 . 4 7 Projectile 3 | . . . . 3 . . . . . . . . . . . . . . . . . AOE 36 | . . . . . . . 4 16 16 . . . . . . . . . . . . Terrain Rammed . | . . . . . . . . . . . . . . . . . . . . . . Walls Destroyed . | . . . . . . . . . . . . . . . . . . . . . . Machines Disabled . | . . . . . . . . . . . . . . . . . . . . . . Actions | -11 -10 -10 -9 -9 -9 -8 -8 -8 -7 -7 -7 -7 -6 -5 -4 -4 -4 -3 -3 -2 -1 --------- Run | Yrd Mat Min Mat Min Exi Min Mat Sto Fac Was Fac DSF Fac Fac Fac Upp Upp Res DSF Res Acc Total 17377 | 120 317 503 307 554 284 189 1396 3560 2556 412 33 123 1866 854 137 1335 154 430 98 1755 394 Wait 5634 | 3 128 192 73 126 . 7 779 1781 879 46 . 24 514 173 50 30 1 50 2 677 99 Move 10967 | 90 163 295 190 409 282 178 565 1587 1565 319 28 86 1307 668 83 1294 149 367 90 985 267 Hop 7 | . . . . . . . . . . . . . . . . . . . . 7 . Pick Up 146 | 10 8 4 10 . 1 . 12 18 13 13 . 1 11 4 . 5 . 3 . 28 5 Fast Attach 14 | . . . 1 . . . . 6 3 . . . 3 . . . . . . 1 . Attach 95 | 7 . . 3 . . 1 3 5 10 8 . 1 4 4 2 3 . 3 5 27 9 Detach 11 | . . . . . . . . . . 2 2 . 1 1 . . . . . . 5 Swap 108 | . 3 2 7 2 . 1 9 37 14 7 1 1 10 2 . . . 4 1 6 1 Drop 76 | . 3 4 6 1 1 1 13 15 4 9 2 1 10 2 . 1 . . . 3 . Fire 204 | 10 12 6 17 16 . 1 15 77 46 . . . . . . . . . . 4 . Melee 88 | . . . . . . . . 22 22 1 . 1 6 . 2 2 4 3 . 17 8 Ram . | . . . . . . . . . . . . . . . . . . . . . . Kick . | . . . . . . . . . . . . . . . . . . . . . . Crush . | . . . . . . . . . . . . . . . . . . . . . . Escape Stasis 8 | . . . . . . . . . . . . 8 . . . . . . . . . Rewire 7 | . . . . . . . . . . 7 . . . . . . . . . . . Trap . | . . . . . . . . . . . . . . . . . . . . . . Miscellaneous 12 | . . . . . . . . 12 . . . . . . . . . . . . . Route ------- -11/Scrapyard -10/Materials -10/Mines -9/Materials (discovered 4 exits: Mat x3 / *Min) -9/Mines (discovered 3 exits: *Mat x2 / *Exi) -9/Exiles (discovered 2 exits: *Min x2) -8/Mines -8/Materials -8/Storage (discovered 2 exits: *Fac / Rec) -7/Factory -7/Waste -7/Factory -7/DSF -6/Factory -5/Factory (discovered 4 exits: *Fac x4) -4/Factory -4/Upper Caves -4/Upper Caves -3/Research (discovered 2 exits: *Tes / DSF) -3/DSF -2/Research -1/Access History --------- Turn | Location | Event 10 | -11/Scrapyard | Discovered new exit (range 16) 158 | -11/Scrapyard | Entered Materials 304 | -10/Materials | Build established: Mutant 512 | -10/Materials | Discovered new exit (range 16) 530 | -10/Materials | Entered Mines 534 | -10/Mines | Met a Derelict who couldn't figure out how to use a Trap Extractor 558 | -10/Mines | Assembled infested the area 753 | -10/Mines | A weapon hastily lodged in a ceiling crevice suddenly fell to the ground 990 | -10/Mines | Discovered new exit (range 3) 1096 | -10/Mines | Identified exit to Materials 1103 | -10/Mines | Entered Materials 1103 | -9/Materials | Accompanied by 1 ally 1103 | -9/Materials | Evolved 2 slots: Propulsion x1, Utility x1 1296 | -9/Materials | Repaired Sensor Array 1318 | -9/Materials | Identified exit to Materials 1426 | -9/Materials | Discovered new exit (range 16) 1482 | -9/Materials | Identified exit to Mines 1483 | -9/Materials | Entered Mines 1502 | -9/Mines | Discovered exit to Materials (range 10) 1548 | -9/Mines | Met a Derelict bent on vengeance 1677 | -9/Mines | Discovered exit to Materials (range 12) 1993 | -9/Mines | Learned location of Storage (-8) 2085 | -9/Mines | Build established: Scavenger-Mutant 2146 | -9/Mines | Deemed a non-threat by the Exiles lab entrance 2146 | -9/Mines | Discovered new exit (range 5) 2150 | -9/Mines | Identified exit to Exiles 2151 | -9/Mines | Entered Exiles 2171 | -9/Exiles | Discovered new exit (range 15) 2196 | -9/Exiles | Identified exit to Mines 2221 | -9/Exiles | Met 8R-AWN 2239 | -9/Exiles | Met EX-HEX 2273 | -9/Exiles | Met EX-BIN 2309 | -9/Exiles | Aligned with FarCom system 2310 | -9/Exiles | Given EX-Vault access code 2337 | -9/Exiles | Opened EX-Vault 2346 | -9/Exiles | Found Cloak of Protection 2371 | -9/Exiles | Warned to stay clear of 0b10 Research branches 2388 | -9/Exiles | Exiles lab attacked by MAIN.C 2479 | -9/Exiles | Discovered exit to Mines (range 12) 2491 | -9/Exiles | Left Exiles lab with Cloak of Protection 2491 | -9/Exiles | Entered Mines 2545 | -8/Mines | Found a Scrap Suit stashed away for nefarious purposes 2636 | -8/Mines | Discovered exit to Materials (range 5) 2718 | -8/Mines | Entered Materials 2718 | -8/Materials | Evolved 2 slots: Utility x2 3085 | -8/Materials | Build established: Hacker-Mutant 4029 | -8/Materials | Discovered new exit (range 6) 4036 | -8/Materials | Identified exit to Storage 4279 | -8/Materials | Entered Storage 4337 | -8/Storage | Repaired Shock Rifle 5680 | -8/Storage | Identified exit to Recycling 6405 | -8/Storage | Identified exit to Factory 6570 | -8/Storage | Build established: Hacker-Skirmisher 6627 | -8/Storage | Assisted by bots powering up and referring to "LRC-V3" 6728 | -8/Storage | Lost 4 allies 7079 | -8/Storage | First assault squad dispatched 7203 | -8/Storage | Lost 3 allies 7782 | -8/Storage | Repaired Shock Rifle 8019 | -8/Storage | Repaired Cld. Ion Engine 8052 | -8/Storage | Repaired Hvy. EM Pulse Gun 8216 | -8/Storage | Entered Factory 8216 | -7/Factory | Evolved 2 slots: Power x1, Propulsion x1 8510 | -7/Factory | Build established: Hacker-Mutant 9455 | -7/Factory | Lost 3 parts (3n) 9765 | -7/Factory | Build established: Mutant 9987 | -7/Factory | Discovered new exit (range 9) 9992 | -7/Factory | Identified exit to Factory 10012 | -7/Factory | Sucked down chute 10012 | -7/Factory | Entered Waste 10012 | -7/Waste | The area was eerily silent 10094 | -7/Waste | Discovered new exit (range 16) 10115 | -7/Waste | Identified exit to Factory 10258 | -7/Waste | Entered Factory 10261 | -7/Factory | Identified exit to DSF 10275 | -7/Factory | Entered DSF 10337 | -7/DSF | Additional patrols routed to DSF 10340 | -7/DSF | Discovered exit to Factory (range 16) 10356 | -7/DSF | Entered Factory 10356 | -6/Factory | Evolved 2 slots: Utility x2 10655 | -6/Factory | Build established: Infiltrator-Mutant 10717 | -6/Factory | Fabricated Field Propulsion Array (x1) 11036 | -6/Factory | Repaired Imp. Gravmag System 11566 | -6/Factory | Discovered new exit (range 16) 11579 | -6/Factory | Identified exit to Factory 11579 | -6/Factory | Entered another Factory area 11579 | -5/Factory | Evolved 2 slots: Utility x2 11878 | -5/Factory | Build established: Hacker-Mutant 12003 | -5/Factory | Identified exit to Factory 12099 | -5/Factory | Entered another Factory area 12099 | -4/Factory | Evolved 2 slots: Propulsion x1, Utility x1 12132 | -4/Factory | Discovered new exit (range 16) 12192 | -4/Factory | Identified exit to Upper Caves 12195 | -4/Factory | Entered Upper Caves 12207 | -4/Upper Caves | Learned Research interactive machine intel 12526 | -4/Upper Caves | Entered an active Warlord outpost 12537 | -4/Upper Caves | Learned Extension trap positions 12537 | -4/Upper Caves | Learned Research security intel 12537 | -4/Upper Caves | Learned Extension terminal intel 12677 | -4/Upper Caves | Discovered new exit (range 9) 12834 | -4/Upper Caves | Attracted the attention of an 0b10 checkpoint 12834 | -4/Upper Caves | Identified exit to Upper Caves 12835 | -4/Upper Caves | Entered another Upper Caves area 12835 | -4/Upper Caves | Discovered new exit (range 7) 12838 | -4/Upper Caves | Identified exit to Research 12915 | -4/Upper Caves | Entered Research 12915 | -3/Research | Evolved 2 slots: Propulsion x1, Utility x1 12917 | -3/Research | Loaded intel: 46 interactive machine locations 13060 | -3/Research | Discovered new exit (range 3) 13061 | -3/Research | Identified exit to Testing 13135 | -3/Research | Identified exit to DSF 13135 | -3/Research | Entered DSF 13157 | -3/DSF | Discovered new exit (range 18) 13160 | -3/DSF | Additional patrols routed to DSF 13181 | -3/DSF | Identified exit to Research 13182 | -3/DSF | Entered Research 13182 | -2/Research | Evolved 2 slots: Utility x2 13207 | -2/Research | Lost 5 parts (1n4u) 13488 | -2/Research | Build established: Mutant 14082 | -2/Research | System corruption reached 10% 14132 | -2/Research | Lost 16 parts (2p6n5u3w) 14259 | -2/Research | Found Prototype Device 14260 | -2/Research | Identified Thermal Barrier 14262 | -2/Research | Found Prototype Device 14263 | -2/Research | Identified Exp. Shock Absorption System 14333 | -2/Research | Discovered new exit (range 6) 14335 | -2/Research | Identified exit to Access 14335 | -2/Research | Entered Access 14335 | -1/Access | Evolved 2 slots: Propulsion x1, Utility x1 14369 | -1/Access | Build established: Sprinter 14539 | -1/Access | Spotted B-99 Colossus 14553 | -1/Access | Core integrity fell below 50% 14557 | -1/Access | Core integrity fell below 20% 14559 | -1/Access | Destroyed by S-43 Plague with Heavy Machine Gun Last Messages --------------- corruption (+5). 14546_ Acquired 78 matter. 14546_ Field Propulsion Array destroyed. 14550_ Slug penetrates Wall. 14550_ Faulty Coolant Network destroyed. 14551_ System corrupted: Matter fused (-7). 14551_ S-43 Plague destroyed. 14551_ Adv. Gravity Neutralizer destroyed. 14552_ Lance destroyed. 14552_ Acquired Xenon Bombardment Thruster. 14553_ S-43 Plague destroyed. 14553_ Slug penetrates Wall. 14553_ Penetrated by Slug. 14553_ Xenon Bombardment Thruster destroyed. 14555_ S-43 Plague destroyed. 14558_ Acquired 31 matter. 14558_ Penetrated by Slug. 14558_ Slug penetrates S-43 Plague. 14558_ Penetrated by Slug. 14558_ Slug penetrates S-43 Plague. Map ----- +----------------------------------------------------+ | ?## ### #????# ! / | | # #????# != # | | # #????# # | | # #????# =" | | # #????# [=## | | # #????# [## | | # #????# "# | | # #################### | | # | | # | | # | | # | | # | | # % | | # | | # ####/############## | | ?? # #??????????? | | ???# #! = #??????????? | | ???# # #??????????? | | ???#ss! s # #??????????? | | ???#!!s ! # ! #??????????? | | ???#! ss ss% ; =#??????????? | | ???# = s ########??????????? | | ???# s = p #?????????????????? | | ???# s #?????????????????? | | ???# s=s@ #?????????????????? | | ???# ##; #???????????? | | ???##+###; #???????????? | | ??? ; #???????????? | | ?# # #???????????? | | ?# # #???????????? | | ?# ###BB #???????????? | | ?# = #?#BB !!= #???????????? | | ?# #?# !!= #???????????? | | ?# ^ #?# !== #???????????? | | ?# #?# ??????????? | | ?# #? ###?????????? | | ?# =#? #???????????? | | ?# ] #?# #???????????? | | ?#########?# #???????????? | | ???????????# #### #???????????? | | ???????????# #??? #???????????? | | ???????????? ##+#????#???????????? | | ???????????? ????????????????????? | | ?????????????????????????????????? | | ?????????????????????????????????? | | ?????????????????????????????????? | | ?????????????????????????????????? | | ?????????????????????????????????? | | ?????????????????????????????????? | +----------------------------------------------------+ Best States ------------- Heat Dissipation 76 Energy Generation 43 Energy Capacity 385 Matter Stores 300 Matter Capacity 300 Sight Range 23 Robot Scan Range 14 Terrain Scan Range 16 Terrain Scan Density 10 ECM Strength 1 Jamming Range 12 Cloak Strength 5 Power Amplification 20 Additional Mass Support 16 Armor Coverage 450 Resistance: TH 50 Evasion (%) 65 Offensive Hacking 20 Defensive Hacking 10 Item Schematics ----------------- Aerolev Unit | -7/Factory | Scanalyzed Adv. Weight Redist. System | -7/Factory | Scanalyzed Nuclear Core | -7/Factory | Scanalyzed Imp. Heat Sink | -7/Factory | Scanalyzed ECM Suite | -7/Factory | Scanalyzed Gravmag System | -4/Factory | Scanalyzed Robot Schematics ------------------ None Fabricated ------------ Field Propulsion Array | x1 | -6/Factory | Preloaded Repaired ---------- Sensor Array | 45% | -9/Materials Shock Rifle | 27% | -8/Storage Shock Rifle | 14% | -8/Storage Cld. Ion Engine | 35% | -8/Storage Hvy. EM Pulse Gun | 44% | -8/Storage Imp. Gravmag System | 28% | -6/Factory Alien Tech Used ----------------- None Achievements -------------- Significant Disruption Challenges ------------ None Game ------ Seed SalvagingProtonJammer Manual? 0 Play Time 02:52:20 Cumulative 36.1 hours Start 2025.08.03 @ 20:51:39 End 2025.08.03 @ 23:48:24 Sessions 1 Manual Loads 0 Difficulty Rogue Special Mode None Game No. 23 Rogue 23 Adventurer 0 Explorer 0 Win Type - Total 0 Types 0/0/0/0/0/0/0/0/0/0 Lore% 23 Gallery% 32 Achievement% 32 Wizard Run 0 Options --------- Layout 1 ASCII 0 Keyboard 0 Movement Mouse Keybinds 0 Fullscreen 1 Font 24/Smallcaps Map View 50x35 Zoom Use 0% Tactical HUD 1 Map Filters NONE Filters NONE Steam 1 RUN: 9ae91cf0-dddd-4bfb-8843-2037816ab1e5